bitfinex/quotes_BTCUSD_20240817
["timestamp","ask_amount","ask_price","bid_price","bid_amount"]
[1723928695268,0.083025,59538.0,59537.0,1.59826321]
[1723928695472,0.083025,59538.0,59537.0,1.72433645]
[1723928695681,0.083025,59538.0,59537.0,1.59826321]
[1723928696089,0.083025,59538.0,59537.0,1.72433856]
[1723928696502,0.083025,59538.0,59537.0,1.59826321]
[1723928698165,0.083025,59538.0,59537.0,1.59826684]
[1723928699742,0.083025,59538.0,59537.0,1.59826681]
[1723928701355,0.083025,59538.0,59537.0,1.59826338]
[1723928702185,0.083025,59538.0,59537.0,1.59826347]
[1723928702381,0.083025,59538.0,59537.0,1.59826348]
[1723928705939,0.083025,59538.0,59537.0,1.59827255]
[1723928706404,0.083025,59538.0,59537.0,1.54803228]
[1723928706560,0.083025,59538.0,59537.0,1.598273]
[1723928710481,0.083025,59538.0,59537.0,1.57701466]
[1723928710697,0.083025,59538.0,59537.0,1.59827294]
[1723928714747,0.083025,59538.0,59537.0,1.54803228]
[1723928714926,0.083025,59538.0,59537.0,1.59827294]
[1723928715331,0.083025,59538.0,59537.0,1.59827115]
[1723928715689,0.000825,59538.0,59537.0,1.65857115]
[1723928716340,0.000825,59538.0,59537.0,1.66782506]
[1723928717313,0.000825,59538.0,59537.0,1.66782407]
[1723928717516,0.076425,59538.0,59537.0,1.60752407]
[1723928717718,0.076425,59538.0,59537.0,1.59827016]
[1723928718873,0.076425,59538.0,59537.0,1.59827121]
[1723928719562,0.000825,59538.0,59537.0,1.60752538]
[1723928719784,0.000825,59538.0,59537.0,1.59826337]
[1723928721614,0.000825,59538.0,59537.0,1.60751767]
[1723928721843,0.000825,59538.0,59537.0,1.59826337]
[1723928722571,0.000825,59538.0,59537.0,1.6075176]
[1723928723014,0.000825,59538.0,59537.0,1.59826289]
[1723928723346,0.000825,59538.0,59537.0,1.60751713]
[1723928723537,0.000825,59538.0,59537.0,1.60751655]
[1723928723749,0.000825,59538.0,59537.0,1.59826241]
[1723928724189,0.000825,59538.0,59537.0,1.60751662]
[1723928724601,0.000825,59538.0,59537.0,1.59826668]
[1723928724805,0.000825,59538.0,59537.0,1.6075209]
[1723928726910,0.000825,59538.0,59537.0,1.59826668]
[1723928727393,0.000825,59538.0,59537.0,1.59826694]
[1723928731472,0.000825,59538.0,59537.0,1.72441503]
[1723928731699,0.000825,59538.0,59537.0,1.56928467]
[1723928731935,0.000825,59538.0,59537.0,1.56929611]
[1723928732192,0.000825,59538.0,59537.0,1.6954492]
[1723928732419,0.000825,59538.0,59537.0,1.56929611]
[1723928732629,0.000825,59538.0,59537.0,1.69544701]
[1723928733539,0.000825,59538.0,59537.0,1.56929611]
[1723928733760,0.000825,59538.0,59537.0,1.2255994]
[1723928733979,0.000825,59538.0,59537.0,1.59827664]
[1723928734402,0.000825,59538.0,59537.0,1.59827657]
[1723928735602,0.000825,59538.0,59537.0,1.59827676]
[1723928735868,0.000825,59538.0,59537.0,1.54803578]
[1723928736092,0.000825,59538.0,59537.0,1.59827681]
[1723928737085,0.000825,59538.0,59537.0,1.56929427]
[1723928737287,0.000825,59538.0,59537.0,1.59827683]
[1723928738676,0.000825,59538.0,59537.0,1.59827629]
[1723928739663,0.000825,59538.0,59537.0,1.56929373]
[1723928739894,0.000825,59538.0,59537.0,1.72443465]
[1723928740135,0.000825,59538.0,59537.0,1.59827642]
[1723928740841,0.000825,59538.0,59537.0,1.60753053]
[1723928741098,0.000825,59538.0,59537.0,1.75263053]
[1723928742806,0.000825,59538.0,59537.0,1.75262952]
[1723928743291,0.000825,59538.0,59537.0,1.66057541]
[1723928743523,0.000825,59538.0,59537.0,1.59827541]
[1723928743977,0.000825,59538.0,59537.0,1.59827566]
[1723928744731,0.000825,59538.0,59537.0,1.56929343]
[1723928744983,0.000825,59538.0,59537.0,1.69543808]
[1723928745239,0.000825,59538.0,59537.0,1.56929343]
[1723928745482,0.000825,59538.0,59537.0,1.59827595]
[1723928745703,0.000825,59538.0,59537.0,1.56929343]
[1723928746362,0.000825,59538.0,59537.0,1.69543767]
[1723928746486,0.000825,59538.0,59537.0,1.69543776]
[1723928746698,0.000825,59538.0,59537.0,1.69543594]
[1723928746895,0.000825,59538.0,59537.0,1.69543837]
[1723928747577,0.000825,59538.0,59537.0,1.69544282]
[1723928748487,0.000825,59538.0,59537.0,1.69544328]
[1723928749349,0.000825,59538.0,59537.0,1.67418463]
[1723928749542,0.000825,59538.0,59537.0,1.69544345]
[1723928749980,0.000825,59538.0,59537.0,1.44349945]
[1723928750187,0.082925,59538.0,59537.0,1.44349945]
[1723928750397,0.082925,59538.0,59537.0,1.41826831]
[1723928750923,0.082925,59538.0,59537.0,0.51685377]
[1723928750924,0.142925,59538.0,59537.0,0.51685377]
[1723928751110,0.142925,59538.0,59537.0,0.04325882]
[1723928751546,0.142925,59538.0,59537.0,0.022]
[1723928751776,0.268894,59538.0,59537.0,0.022]
[1723928751893,0.268894,59538.0,59537.0,0.009]
[1723928752094,0.268894,59538.0,59537.0,0.002]
[1723928752727,0.268894,59538.0,59535.0,0.125975]
[1723928752728,0.0821,59536.0,59535.0,0.125975]
[1723928752929,0.0821,59536.0,59535.0,0.14723646]
[1723928753132,0.0821,59536.0,59535.0,0.125975]
[1723928754976,0.0821,59535.0,59534.0,0.125978]
[1723928756592,0.0821,59535.0,59534.0,0.128978]
[1723928758296,0.1421,59535.0,59534.0,0.003]
[1723928762556,0.268076,59535.0,59534.0,0.003]
[1723928763231,0.520028,59535.0,59534.0,0.003]
[1723928763642,0.268076,59535.0,59534.0,0.003]
[1723928765193,0.77198,59535.0,59534.0,0.003]
[1723928765815,0.86588,59535.0,59534.0,0.003]
[1723928767083,1.117832,59535.0,59534.0,0.003]
[1723928768138,1.117832,59535.0,59532.0,0.0009075]
[1723928768139,0.659902,59533.0,59532.0,0.0009075]
[1723928768339,0.723902,59533.0,59532.0,0.0009075]
[1723928768551,0.799802,59533.0,59532.0,0.0009075]
[1723928768773,1.051763,59533.0,59532.0,0.0009075]
[1723928769602,1.051763,59533.0,59532.0,0.0019075]
[1723928769603,1.052763,59533.0,59532.0,0.0019075]
[1723928793427,1.053588,59533.0,59532.0,0.0019075]
[1723928810439,1.10393121,59533.0,59532.0,0.0019075]
[1723928810896,1.10399883,59533.0,59532.0,0.0019075]
[1723928811365,1.12920425,59533.0,59532.0,0.0019075]
[1723928817877,1.15440967,59533.0,59532.0,0.0019075]
[1723928818168,1.12921608,59533.0,59532.0,0.0019075]
[1723928818397,1.15440967,59533.0,59532.0,0.0019075]
[1723928818591,1.12921761,59533.0,59532.0,0.0019075]
[1723928819901,0.031825,59533.0,59532.0,0.1469075]
[1723928820310,0.031825,59533.0,59532.0,0.2728895]
[1723928820482,0.031825,59533.0,59532.0,0.29415247]
[1723928821591,0.031825,59533.0,59532.0,0.2728895]
[1723928822377,0.031825,59533.0,59532.0,0.5248545]
[1723928823687,0.031825,59533.0,59532.0,0.2728895]
[1723928823885,0.031825,59533.0,59532.0,0.1469075]
[1723928824328,0.031825,59533.0,59532.0,0.2728895]
[1723928834895,0.031825,59533.0,59532.0,0.7768195]
[1723928835152,0.001825,59533.0,59532.0,0.7768195]
[1723928836102,0.001825,59533.0,59532.0,0.94837404]
[1723928836306,0.001825,59533.0,59532.0,0.96963644]
[1723928836525,0.001825,59533.0,59532.0,1.32160144]
[1723928836959,0.000825,59533.0,59532.0,1.32160144]
[1723928837370,0.000825,59533.0,59532.0,1.32360144]
[1723928837578,0.000825,59533.0,59532.0,1.3364101]
[1723928837791,0.000825,59533.0,59532.0,1.3444101]
[1723928838217,0.000825,59533.0,59532.0,1.38875523]
[1723928838397,0.000825,59533.0,59532.0,1.42475523]
[1723928839530,0.000825,59533.0,59532.0,1.3744101]
[1723928843315,0.000825,59533.0,59532.0,1.37440719]
[1723928847616,0.000825,59533.0,59532.0,1.3744074]
[1723928849371,0.000825,59533.0,59532.0,1.4683074]
[1723928849794,0.000825,59533.0,59532.0,1.45849874]
[1723928860842,0.000825,59533.0,59532.0,1.45849848]
[1723928864463,0.000825,59533.0,59532.0,1.48748226]
[1723928864666,0.000825,59533.0,59532.0,1.45849848]
[1723928864881,0.000825,59533.0,59532.0,1.43723904]
[1723928865134,0.000825,59533.0,59532.0,1.48748262]
[1723928865334,0.000825,59533.0,59532.0,1.53777272]
[1723928867735,0.000825,59533.0,59532.0,1.5470277]
[1723928869116,0.000825,59533.0,59532.0,1.49678412]
[1723928869365,0.000825,59533.0,59532.0,1.54702722]
[1723928869610,0.000825,59533.0,59532.0,1.44442722]
[1723928869844,0.000825,59533.0,59532.0,1.39413712]
[1723928870085,0.077725,59533.0,59532.0,0.98187212]
[1723928870326,0.077725,59533.0,59532.0,0.97261714]
[1723928870558,0.140325,59533.0,59532.0,0.69166857]
[1723928871188,0.140325,59533.0,59532.0,0.52011403]
[1723928873185,0.140325,59533.0,59532.0,0.4988545]
[1723928873405,0.140325,59533.0,59532.0,0.52011475]
[1723928873816,0.140325,59533.0,59532.0,0.26814975]
[1723928874026,0.140325,59533.0,59532.0,0.04216775]
[1723928875703,0.140325,59533.0,59532.0,0.04216808]
[1723928879846,0.14026866,59533.0,59532.0,0.04216808]
[1723928881023,0.14026866,59533.0,59532.0,0.04216805]
[1723928882902,0.80017066,59533.0,59532.0,0.04216805]
[1723928883637,0.80017066,59533.0,59532.0,0.0421685]
[1723928884481,0.80017066,59533.0,59532.0,0.0209075]
[1723928884707,0.80017066,59533.0,59532.0,0.04216852]
[1723928888123,0.89407066,59533.0,59532.0,0.04216852]
[1723928889985,1.14603166,59533.0,59532.0,0.04216852]
[1723928896846,1.14603166,59533.0,59532.0,0.04216925]
[1723928897050,1.14603166,59533.0,59532.0,0.0209075]
[1723928897412,1.14603166,59533.0,59532.0,0.0089075]
[1723928897638,1.14603166,59533.0,59532.0,0.0009075]
[1723928897837,1.14703166,59533.0,59532.0,0.0009075]
[1723928898030,1.26511733,59533.0,59532.0,0.0019075]
[1723928898490,1.15003166,59533.0,59532.0,0.0019075]
[1723928899437,1.15003166,59533.0,59532.0,0.02316933]
[1723928899590,1.15003166,59533.0,59532.0,0.0019075]
[1723928900428,1.15003166,59533.0,59532.0,0.02316933]
[1723928904568,1.15003166,59533.0,59532.0,0.0019075]
[1723928912036,1.17639148,59533.0,59532.0,0.0019075]
[1723928914283,1.22668101,59533.0,59532.0,0.0019075]
[1723928915550,1.17639148,59533.0,59532.0,0.0019075]
[1723928915854,1.50378678,59533.0,59532.0,0.0019075]
[1723928916085,1.47742696,59533.0,59532.0,0.0019075]
[1723928920464,1.40199266,59533.0,59532.0,0.0019075]
[1723928923576,1.50257173,59533.0,59532.0,0.0019075]
[1723928923815,1.47752664,59533.0,59532.0,0.0019075]
[1723928924047,1.40199266,59533.0,59532.0,0.0019075]
[1723928924309,1.4775268,59533.0,59532.0,0.0019075]
[1723928924554,1.40199266,59533.0,59532.0,0.0019075]
[1723928925187,1.47753584,59533.0,59532.0,0.0019075]
[1723928925421,1.50257173,59533.0,59532.0,0.0019075]
[1723928926375,1.40199266,59533.0,59532.0,0.0019075]
[1723928926612,1.5277165,59533.0,59532.0,0.0019075]
[1723928926852,1.5027275,59533.0,59532.0,0.0019075]
[1723928927084,1.40199266,59533.0,59532.0,0.0019075]
[1723928927529,1.5277165,59533.0,59532.0,0.0019075]
[1723928927928,1.52792454,59533.0,59532.0,0.0019075]
[1723928930526,1.40199266,59533.0,59532.0,0.0019075]
[1723928930935,1.52795737,59533.0,59532.0,0.0019075]
[1723928931553,1.40199266,59533.0,59532.0,0.0019075]
[1723928932028,1.52797037,59533.0,59532.0,0.0019075]
[1723928932453,1.40199266,59533.0,59532.0,0.0019075]
[1723928932884,1.33939266,59533.0,59532.0,0.0019075]
[1723928933997,1.46540165,59533.0,59532.0,0.0019075]
[1723928934212,1.33939266,59533.0,59532.0,0.0019075]
[1723928948281,1.26249266,59533.0,59532.0,0.0019075]
[1723928948486,1.26249266,59533.0,59532.0,0.1391075]
[1723928949771,1.26249266,59533.0,59532.0,0.0624075]
[1723928949971,1.26249266,59533.0,59532.0,0.0019075]
[1723928957570,1.33929266,59533.0,59532.0,0.0019075]
[1723928960391,1.26249266,59533.0,59532.0,0.0019075]
[1723928972733,1.34239266,59533.0,59532.0,0.0019075]
[1723928977059,1.49836947,59533.0,59532.0,0.0019075]
[1723928979035,1.34239266,59533.0,59532.0,0.0019075]
[1723928980213,1.36875277,59533.0,59532.0,0.0019075]
[1723928986531,1.34239266,59533.0,59532.0,0.0019075]
[1723928998548,0.91663166,59533.0,59532.0,0.0019075]
[1723928998757,1.01053166,59533.0,59532.0,0.0019075]
[1723929006798,1.09133166,59533.0,59532.0,0.0019075]
[1723929008748,1.24275215,59533.0,59532.0,0.0019075]
[1723929009199,1.09133166,59533.0,59532.0,0.0019075]
[1723929010444,1.22250003,59533.0,59532.0,0.0019075]
[1723929012061,1.09133166,59533.0,59532.0,0.0019075]
[1723929013098,1.01053166,59533.0,59532.0,0.0019075]
[1723929026199,1.08973166,59533.0,59532.0,0.0019075]
[1723929031920,1.08673166,59533.0,59532.0,0.0019075]
[1723929038144,1.08973166,59533.0,59532.0,0.0019075]
[1723929039229,1.22334949,59533.0,59532.0,0.0019075]
[1723929042897,1.08973166,59533.0,59532.0,0.0019075]
[1723929046998,1.11609196,59533.0,59532.0,0.0019075]
[1723929048501,1.36805296,59533.0,59532.0,0.0019075]
[1723929054595,1.36605296,59533.0,59532.0,0.0019075]
[1723929055159,1.36805296,59533.0,59532.0,0.0019075]
[1723929055605,1.34169266,59533.0,59532.0,0.0019075]
[1723929057989,1.33869266,59533.0,59532.0,0.0019075]
[1723929058403,1.26249266,59533.0,59532.0,0.0019075]
[1723929065645,1.4214403,59533.0,59532.0,0.0019075]
[1723929070205,1.26249266,59533.0,59532.0,0.0019075]
[1723929075016,1.40859266,59533.0,59532.0,0.0019075]
[1723929075219,1.57905376,59533.0,59532.0,0.0019075]
[1723929075422,1.40859266,59533.0,59532.0,0.0019075]
[1723929078360,1.40959266,59533.0,59532.0,0.0019075]
[1723929080130,1.41159266,59533.0,59532.0,0.0019075]
[1723929082073,1.40859266,59533.0,59532.0,0.0019075]
[1723929082452,1.40959266,59533.0,59532.0,0.0019075]
[1723929082606,1.40859266,59533.0,59532.0,0.0019075]
[1723929083235,1.34429266,59533.0,59532.0,0.0019075]
[1723929085272,1.34529266,59533.0,59532.0,0.0019075]
[1723929085639,1.34729266,59533.0,59532.0,0.0019075]
[1723929086118,1.5177469,59533.0,59532.0,0.0019075]
[1723929086337,1.5147469,59533.0,59532.0,0.0019075]
[1723929086456,1.5157469,59533.0,59532.0,0.0019075]
[1723929087061,1.5147469,59533.0,59532.0,0.0019075]
[1723929087272,1.51574055,59533.0,59532.0,0.0019075]
[1723929088386,1.34529266,59533.0,59532.0,0.0019075]
[1723929089642,1.34729266,59533.0,59532.0,0.0019075]
[1723929090273,1.34429266,59533.0,59532.0,0.0019075]
[1723929090714,1.34529266,59533.0,59532.0,0.0019075]
[1723929091144,1.34429266,59533.0,59532.0,0.0019075]
[1723929093616,1.34529266,59533.0,59532.0,0.0019075]
[1723929094482,1.34429266,59533.0,59532.0,0.0019075]
[1723929104686,1.26249266,59533.0,59532.0,0.0019075]
[1723929112958,1.91047528,59533.0,59532.0,0.0019075]
[1723929113185,0.600295,59526.0,59525.0,0.00136311]
[1723929113436,1.27473047,59526.0,59525.0,0.00136311]
[1723929113652,2.15361311,59526.0,59525.0,0.00136311]
[1723929114384,1.983245,59526.0,59525.0,0.00136311]
[1723929114609,2.15455717,59526.0,59525.0,0.00136311]
[1723929114833,2.15755717,59526.0,59525.0,0.00236311]
[1723929115408,2.15755669,59526.0,59525.0,0.00236311]
[1723929115662,1.99626701,59526.0,59525.0,0.00236311]
[1723929116060,2.19694329,59526.0,59525.0,0.00336311]
[1723929116494,2.0266316,59526.0,59525.0,0.00336311]
[1723929119321,2.19818614,59526.0,59525.0,0.00336311]
[1723929123978,2.17182155,59526.0,59525.0,0.00336311]
[1723929134467,2.17855655,59526.0,59525.0,0.00336311]
[1723929152421,2.34862553,59526.0,59525.0,0.00336311]
[1723929153833,2.17855655,59526.0,59525.0,0.00336311]
[1723929155055,2.34876468,59526.0,59525.0,0.00336311]
[1723929155456,2.17855655,59526.0,59525.0,0.00336311]
[1723929160738,1.452667,59525.0,59524.0,6.1e-07]
[1723929160934,0.86504,59520.0,59519.0,0.0009075]
[1723929161146,1.725572,59520.0,59519.0,0.0009075]
[1723929161316,1.977588,59520.0,59519.0,0.0009075]
[1723929161721,2.12978837,59520.0,59519.0,0.0009075]
[1723929162530,2.14278837,59520.0,59519.0,0.0009075]
[1723929164379,2.15478837,59520.0,59519.0,0.0019075]
[1723929167975,2.16484639,59520.0,59519.0,0.0019075]
[1723929176319,2.41686239,59520.0,59519.0,5e-07]
[1723929180130,2.41686239,59520.0,59519.0,0.000908]
[1723929180359,1.169225,59512.0,59511.0,0.1388]
[1723929180574,1.363125,59512.0,59511.0,0.1388]
[1723929180951,1.615175,59512.0,59511.0,0.1388]
[1723929181470,1.619175,59512.0,59511.0,0.1388]
[1723929184569,1.64554548,59512.0,59511.0,0.1388]
[1723929184791,1.66877821,59512.0,59511.0,0.1388]
[1723929185758,1.67900187,59512.0,59511.0,0.1388]
[1723929187497,1.83012394,59512.0,59511.0,0.1388]
[1723929188500,1.83016639,59512.0,59511.0,0.1388]
[1723929189075,1.80693366,59512.0,59511.0,0.1388]
[1723929189283,1.80693366,59512.0,59511.0,0.0611]
[1723929190973,1.65376914,59512.0,59511.0,0.0611]
[1723929191380,1.63039866,59512.0,59511.0,0.0611]
[1723929191704,1.63639866,59512.0,59511.0,0.0611]
[1723929192525,1.71629866,59512.0,59511.0,0.0009075]
[1723929192729,1.73929866,59512.0,59511.0,0.0009075]
[1723929194117,1.73429866,59512.0,59511.0,0.0009075]
[1723929194325,1.72829866,59512.0,59511.0,0.0009075]
[1723929194492,1.74229866,59512.0,59511.0,0.0009075]
[1723929194692,1.9138532,59512.0,59511.0,0.0009075]
[1723929194924,1.9278532,59512.0,59511.0,0.0009075]
[1723929195514,1.9138532,59512.0,59511.0,0.0009075]
[1723929195938,1.9278532,59512.0,59511.0,0.0009075]
[1723929196315,2.0980033,59512.0,59511.0,0.0009075]
[1723929197365,1.9278532,59512.0,59511.0,0.0009075]
[1723929197921,1.8479532,59512.0,59511.0,0.0009075]
[1723929199351,1.67639866,59512.0,59511.0,0.0009075]
[1723929199740,1.58049866,59512.0,59511.0,0.0009075]
[1723929199951,1.67639866,59512.0,59511.0,0.0009075]
[1723929202090,1.67639866,59512.0,59511.0,0.0650075]
[1723929204957,1.67932419,59512.0,59511.0,0.0650075]
[1723929207983,1.67639866,59512.0,59511.0,0.0650075]
[1723929218785,1.8479532,59512.0,59511.0,0.0650075]
[1723929222737,1.8439532,59512.0,59511.0,0.0650075]
[1723929223187,1.8459532,59512.0,59511.0,0.0650075]
[1723929223395,1.8479532,59512.0,59511.0,0.0650075]
[1723929225169,1.67639866,59512.0,59511.0,0.0650075]
[1723929225374,2.07104866,59512.0,59511.0,5e-07]
[1723929225577,0.001,59503.0,59502.0,0.0637]
[1723929225796,0.72512,59503.0,59502.0,0.0637]
[1723929226032,1.229296,59503.0,59502.0,0.0637]
[1723929226251,1.135396,59503.0,59502.0,0.0637]
[1723929226450,1.229296,59503.0,59502.0,0.0637]
[1723929226997,1.243296,59503.0,59502.0,0.0637]
[1723929227548,1.229296,59503.0,59502.0,0.0637]
[1723929227752,1.243296,59503.0,59502.0,0.0637]
[1723929228080,1.257296,59503.0,59502.0,0.0637]
[1723929228322,1.243296,59503.0,59502.0,0.0637]
[1723929228524,1.257296,59503.0,59502.0,0.0637]
[1723929228721,1.271296,59503.0,59502.0,0.0637]
[1723929228928,1.243296,59503.0,59502.0,0.0637]
[1723929229126,1.257296,59503.0,59502.0,0.0637]
[1723929229538,1.42110299,59503.0,59502.0,0.0637]
[1723929229753,1.177396,59503.0,59502.0,0.0637]
[1723929229956,0.03,59484.0,59483.0,0.0009075]
[1723929230155,0.156084,59484.0,59483.0,0.0009075]
[1723929230576,0.156084,59484.0,59483.0,0.0646075]
[1723929230713,0.156084,59484.0,59483.0,0.1430075]
[1723929230714,0.408252,59484.0,59483.0,0.1430075]
[1723929231135,0.156084,59484.0,59483.0,0.1430075]
[1723929231332,0.157084,59484.0,59483.0,0.1430075]
[1723929231954,0.031,59484.0,59483.0,0.1430075]
[1723929235472,1.007488,59484.0,59483.0,0.1430075]
[1723929236967,1.008488,59484.0,59483.0,0.1430075]
[1723929237379,1.007488,59484.0,59483.0,0.1430075]
[1723929237769,1.008488,59484.0,59483.0,0.1430075]
[1723929238970,1.05895801,59484.0,59483.0,0.1430075]
[1723929239145,1.008488,59484.0,59483.0,0.1430075]
[1723929240647,0.66242,59484.0,59483.0,0.1430075]
[1723929245461,0.75632,59484.0,59483.0,0.1430075]
[1723929260328,0.66242,59484.0,59483.0,0.1430075]
[1723929279512,0.71288285,59484.0,59483.0,0.1430075]
[1723929279971,0.71288304,59484.0,59483.0,0.1430075]
[1723929280438,0.71288304,59484.0,59483.0,0.0646075]
[1723929282115,0.71288304,59484.0,59483.0,0.0009075]
[1723929283978,0.71289057,59484.0,59483.0,0.0009075]
[1723929284331,0.66242,59484.0,59483.0,0.0009075]
[1723929288738,0.66242,59484.0,59483.0,0.0789075]
[1723929288937,0.66242,59484.0,59483.0,0.1451075]
[1723929291982,0.66242,59484.0,59483.0,0.0009075]
[1723929295159,0.63242,59484.0,59483.0,0.0009075]
[1723929299761,0.66242,59484.0,59483.0,0.0009075]
[1723929299893,0.66242,59484.0,59483.0,0.0841075]
[1723929300282,0.66242,59484.0,59483.0,0.15216954]
[1723929300283,0.10770907,59484.0,59483.0,0.15216954]
[1723929300472,0.002,59484.0,59483.0,0.2748935]
[1723929300670,0.002,59484.0,59483.0,0.29617135]
[1723929301880,0.002,59484.0,59483.0,0.2748935]
[1723929302101,0.002,59484.0,59483.0,0.29617109]
[1723929302335,0.002,59484.0,59483.0,0.2748935]
[1723929302647,0.002,59484.0,59483.0,0.29617116]
[1723929303087,0.002,59484.0,59483.0,0.2748935]
[1723929306226,0.002,59484.0,59483.0,0.1488075]
[1723929307701,0.002,59484.0,59483.0,0.2748935]
[1723929309137,0.001,59484.0,59483.0,0.5270655]
[1723929309510,0.001,59484.0,59483.0,0.2748935]
[1723929310304,0.126078,59487.0,59484.0,0.1413]
[1723929310458,0.126078,59487.0,59485.0,0.1413]
[1723929310659,0.126078,59487.0,59483.0,0.1269935]
[1723929311047,0.126077,59488.0,59485.0,0.0615]
[1723929311245,0.252147,59489.0,59487.0,0.0615]
[1723929311450,0.03,59490.0,59488.0,0.06486168]
[1723929311658,0.04935611,59495.0,59488.0,0.0939]
[1723929311863,0.04935611,59495.0,59492.0,0.0798]
[1723929312139,0.156057,59497.0,59493.0,0.0615]
[1723929312353,0.126059,59496.0,59493.0,0.0615]
[1723929312767,0.004,59495.0,59493.0,0.0615]
[1723929313367,0.126059,59496.0,59493.0,0.0615]
[1723929313749,0.002,59496.0,59493.0,0.187563]
[1723929314167,0.001,59495.0,59493.0,0.187563]
[1723929314371,0.002,59496.0,59493.0,0.187563]
[1723929314813,0.004,59496.0,59494.0,0.126062]
[1723929315221,0.002,59495.0,59494.0,0.126062]
[1723929315631,0.156056,59497.0,59494.0,0.126062]
[1723929315829,0.002,59495.0,59494.0,0.126062]
[1723929316358,0.156056,59497.0,59494.0,0.126062]
[1723929316763,0.002,59495.0,59494.0,0.126062]
[1723929317407,0.002,59495.0,59493.0,0.187565]
[1723929317607,0.002,59495.0,59494.0,0.126063]
[1723929318022,0.156056,59497.0,59494.0,0.126063]
[1723929318238,0.001,59495.0,59494.0,0.126063]
[1723929319091,0.002,59495.0,59494.0,0.126063]
[1723929319965,0.001,59495.0,59494.0,0.126063]
[1723929320621,0.001,59495.0,59494.0,0.77967624]
[1723929320834,0.001,59495.0,59494.0,0.776315]
[1723929321071,0.002,59495.0,59494.0,0.776315]
[1723929322840,0.002,59495.0,59494.0,0.524189]
[1723929323203,0.002825,59495.0,59494.0,0.524189]
[1723929327418,0.002825,59495.0,59494.0,0.146]
[1723929327982,0.002825,59495.0,59494.0,0.272063]
[1723929342349,0.002825,59495.0,59494.0,0.29333774]
[1723929343809,0.002825,59495.0,59494.0,0.272063]
[1723929343987,0.002825,59495.0,59494.0,0.29333604]
[1723929345679,0.002825,59495.0,59494.0,0.21283604]
[1723929347931,0.002825,59495.0,59494.0,0.191563]
[1723929348162,0.002825,59495.0,59494.0,0.21283604]
[1723929350897,0.0829,59489.0,59486.0,0.0624]
[1723929351098,0.0829,59489.0,59487.0,0.02127528]
[1723929351099,0.208975,59489.0,59487.0,0.02127528]
[1723929351299,0.208975,59489.0,59486.0,0.0624]
[1723929351300,0.208973,59489.0,59488.0,0.02127528]
[1723929351716,0.46112,59489.0,59488.0,0.02127528]
[1723929351848,0.208973,59489.0,59488.0,0.02127528]
[1723929352870,0.209973,59489.0,59488.0,0.02127528]
[1723929353280,0.0839,59489.0,59486.0,0.12608]
[1723929353488,0.003,59489.0,59487.0,0.0212763]
[1723929353704,0.003,59489.0,59488.0,0.0212763]
[1723929353911,0.002,59489.0,59488.0,0.0212763]
[1723929354323,0.001,59489.0,59488.0,0.0242763]
[1723929354728,0.156072,59490.0,59488.0,0.0212763]
[1723929354934,0.03,59490.0,59488.0,0.0624]
[1723929355140,0.03,59490.0,59489.0,0.24124877]
[1723929355370,0.000825,59495.0,59489.0,0.44282277]
[1723929355590,0.000825,59495.0,59490.0,0.02127577]
[1723929355796,0.126886,59495.0,59492.0,0.126066]
[1723929356443,0.000825,59495.0,59492.0,0.126066]
[1723929356866,0.005825,59495.0,59492.0,0.126066]
[1723929357067,0.000825,59495.0,59492.0,0.126066]
[1723929357293,0.000825,59495.0,59493.0,0.126065]
[1723929357496,0.010825,59495.0,59494.0,0.25548733]
[1723929357742,0.010825,59495.0,59494.0,0.768215]
[1723929358245,0.005825,59495.0,59494.0,0.768215]
[1723929359346,0.000825,59495.0,59494.0,0.768215]
[1723929359553,0.010825,59495.0,59494.0,0.768215]
[1723929360191,0.006825,59495.0,59494.0,0.768215]
[1723929360403,0.007825,59495.0,59494.0,0.768215]
[1723929364597,0.007825,59495.0,59494.0,0.78948902]
[1723929367777,0.007825,59495.0,59494.0,0.78948887]
[1723929369322,0.007825,59495.0,59494.0,0.440589]
[1723929369526,0.007825,59495.0,59494.0,0.692715]
[1723929375145,0.007825,59495.0,59494.0,0.630315]
[1723929382205,0.007825,59495.0,59494.0,0.65158898]
[1723929388646,0.007825,59495.0,59494.0,0.65158798]
[1723929396609,0.007825,59495.0,59494.0,0.630315]
[1723929396812,0.007825,59495.0,59494.0,0.65158805]
[1723929401280,0.367147,59495.0,59494.0,0.02127305]
[1723929401470,0.556408,59495.0,59494.0,0.02127305]
[1723929401686,0.556408,59495.0,59490.0,0.12607]
[1723929401687,0.0772,59492.0,59490.0,0.12607]
[1723929401870,0.0772,59492.0,59491.0,0.02127475]
[1723929402314,0.1404,59492.0,59491.0,0.02127475]
[1723929402534,0.1404,59492.0,59491.0,0.14734375]
[1723929403157,0.1404,59492.0,59491.0,0.02127475]
[1723929403628,0.0632,59492.0,59489.0,0.126073]
[1723929403838,0.0772,59491.0,59490.0,0.02127513]
[1723929404673,0.0772,59491.0,59490.0,0.02327513]
[1723929404896,0.0772,59491.0,59490.0,0.002]
[1723929405115,0.0772,59491.0,59490.0,0.14734622]
[1723929405523,0.0772,59491.0,59490.0,0.15034622]
[1723929406394,0.0772,59491.0,59490.0,0.129071]
[1723929406849,0.0782,59491.0,59490.0,0.129071]
[1723929417556,0.0782,59491.0,59490.0,0.381214]
[1723929420839,0.079025,59491.0,59490.0,0.381214]
[1723929421602,0.079025,59491.0,59490.0,0.40248906]
[1723929432388,0.079025,59491.0,59490.0,0.381214]
[1723929432606,0.079025,59491.0,59490.0,0.40248899]
[1723929436513,0.079025,59491.0,59490.0,0.4024892]
[1723929440411,0.079025,59491.0,59490.0,0.40248913]
[1723929444151,0.001825,59491.0,59490.0,0.40248913]
[1723929446456,0.001825,59491.0,59490.0,0.45298457]
[1723929450125,0.001825,59491.0,59490.0,0.15034613]
[1723929450363,0.077525,59491.0,59490.0,0.40248913]
[1723929452465,0.077525,59491.0,59490.0,0.4024892]
[1723929454954,0.143525,59491.0,59490.0,0.4024892]
[1723929456362,0.521732,59491.0,59490.0,0.0242752]
[1723929456573,0.77387,59491.0,59490.0,0.0242752]
[1723929456818,0.521732,59491.0,59490.0,0.0242752]
[1723929457043,0.521732,59491.0,59490.0,0.003]
[1723929457271,0.77387,59491.0,59490.0,0.003]
[1723929457498,0.77287,59491.0,59490.0,0.003]
[1723929458137,0.77287,59491.0,59485.0,0.08406]